bitfinex-derivatives/quotes_BTCF0:USTF0_20250902
["timestamp","ask_amount","ask_price","bid_price","bid_amount"]
[1756836601421,0.4670282,110660.0,110650.0,0.41447075]
[1756836601826,0.2170282,110660.0,110650.0,0.41447075]
[1756836603628,0.04921,110660.0,110650.0,0.41447365]
[1756836603829,0.23996332,110670.0,110650.0,0.41347365]
[1756836604034,0.003,110660.0,110650.0,0.001]
[1756836604224,0.17038,110660.0,110650.0,0.001]
[1756836604933,0.16738,110660.0,110650.0,0.002]
[1756836605120,0.16738,110660.0,110650.0,0.43726328]
[1756836605324,0.04821,110660.0,110650.0,0.43726328]
[1756836605520,0.04821,110660.0,110650.0,0.43526328]
[1756836605726,0.04921,110660.0,110650.0,0.43726328]
[1756836606734,0.001,110660.0,110650.0,0.43726328]
[1756836606931,0.001,110660.0,110650.0,0.46977605]
[1756836607138,0.16838,110660.0,110650.0,0.46977605]
[1756836607332,0.16838,110660.0,110650.0,0.03451277]
[1756836607638,0.09729,110660.0,110650.0,0.46977605]
[1756836608235,0.09729,110660.0,110650.0,0.48971227]
[1756836608433,0.16632,110660.0,110650.0,0.48971227]
[1756836609737,0.09729,110660.0,110650.0,0.48971227]
[1756836610444,0.04921,110660.0,110650.0,0.48971227]
[1756836610845,0.001,110660.0,110650.0,0.48971227]
[1756836611045,0.16537,110660.0,110650.0,0.48971227]
[1756836611838,0.04826,110660.0,110650.0,0.48971227]
[1756836612040,0.16315,110660.0,110650.0,0.48971227]
[1756836612439,0.16315,110660.0,110650.0,0.03451277]
[1756836612639,0.84841328,110660.0,110650.0,0.002]
[1756836613038,0.09687,110650.0,110640.0,0.43526328]
[1756836613346,0.16215,110640.0,110630.0,0.43526328]
[1756836613650,0.11215809,110640.0,110630.0,0.43526328]
[1756836614050,0.18118809,110640.0,110630.0,0.43526328]
[1756836614848,0.18218809,110640.0,110630.0,0.43926328]
[1756836615239,0.02003809,110640.0,110630.0,0.43926328]
[1756836615445,0.18218809,110640.0,110630.0,0.43950324]
[1756836616052,0.18218809,110640.0,110630.0,0.44112156]
[1756836617153,0.18218809,110640.0,110630.0,0.43712156]
[1756836617154,0.18318809,110640.0,110630.0,0.43712156]
[1756836617748,0.02103809,110640.0,110630.0,0.43712156]
[1756836618252,0.06829809,110640.0,110630.0,0.43712156]
[1756836618653,0.11415809,110640.0,110630.0,0.43712156]
[1756836618849,0.02103809,110640.0,110630.0,0.68712156]
[1756836619053,0.002,110640.0,110630.0,0.76589071]
[1756836619350,0.002,110640.0,110630.0,0.71712156]
[1756836619951,0.23473332,110670.0,110630.0,1.15235887]
[1756836620249,0.25410372,110670.0,110660.0,0.43512156]
[1756836621356,0.25510372,110670.0,110660.0,0.43512156]
[1756836621743,0.18507372,110670.0,110660.0,0.43612156]
[1756836621948,0.25910372,110670.0,110660.0,0.43612156]
[1756836622847,0.51010372,110670.0,110660.0,0.001]
[1756836623752,0.50610372,110670.0,110660.0,0.001]
[1756836624257,0.25610372,110670.0,110660.0,0.43612156]
[1756836625655,0.14121372,110670.0,110660.0,0.43612156]
[1756836625857,0.25610372,110670.0,110660.0,0.43612156]
[1756836628253,0.09395372,110670.0,110660.0,0.43612156]
[1756836628462,0.09395372,110670.0,110660.0,0.68612156]
[1756836628662,0.09395372,110670.0,110660.0,0.251]
[1756836628859,0.07458332,110670.0,110660.0,0.68612156]
[1756836629053,0.23673332,110670.0,110660.0,0.43612156]
[1756836629358,0.23673332,110670.0,110660.0,1.30176156]
[1756836630258,0.23673332,110670.0,110660.0,1.30172156]
[1756836630559,0.25608083,110670.0,110660.0,0.43612156]
[1756836631354,0.23673332,110670.0,110660.0,0.43612156]
[1756836632853,0.25607715,110670.0,110660.0,0.43612156]
[1756836634858,0.50607715,110670.0,110660.0,0.001]
[1756836637665,0.25607715,110670.0,110660.0,0.43612156]
[1756836640467,0.25607715,110670.0,110660.0,0.001]
[1756836640666,0.25607715,110670.0,110660.0,0.43612156]
[1756836641567,0.25607394,110670.0,110660.0,0.43612156]
[1756836641962,0.25607394,110670.0,110660.0,0.001]
[1756836642167,0.25607394,110670.0,110660.0,0.43612156]
[1756836642368,0.25607394,110670.0,110660.0,0.001]
[1756836642869,0.25607394,110670.0,110660.0,0.43612156]
[1756836643863,0.18704394,110670.0,110660.0,0.43612156]
[1756836644071,0.25675394,110670.0,110660.0,0.43612156]
[1756836644474,0.25675394,110670.0,110660.0,0.001]
[1756836646271,0.25675394,110670.0,110660.0,0.43612156]
[1756836647069,0.30540214,110670.0,110660.0,0.43612156]
[1756836648669,0.23569214,110670.0,110660.0,0.43612156]
[1756836648868,0.18704394,110670.0,110660.0,0.68612156]
[1756836649871,0.25675394,110670.0,110660.0,0.68612156]
[1756836650667,0.09392394,110670.0,110660.0,0.68612156]
[1756836650870,0.14165394,110670.0,110660.0,0.68612156]
[1756836651071,0.09392394,110670.0,110660.0,0.68612156]
[1756836652370,0.14165394,110670.0,110660.0,0.68612156]
[1756836652576,0.25650394,110670.0,110660.0,0.251]
[1756836652776,0.25650394,110670.0,110660.0,0.68612156]
[1756836653775,0.50650394,110670.0,110660.0,0.001]
[1756836654078,0.55515214,110670.0,110660.0,0.001]
[1756836654478,0.55515214,110670.0,110660.0,0.43612156]
[1756836656773,0.30515214,110670.0,110660.0,0.43612156]
[1756836656973,0.25650394,110670.0,110660.0,0.43612156]
[1756836661980,0.25675566,110670.0,110660.0,0.43612156]
[1756836662483,0.25675566,110670.0,110660.0,0.001]
[1756836662683,0.50675566,110670.0,110660.0,0.001]
[1756836662986,0.16258,110640.0,110630.0,0.48386164]
[1756836663186,0.18217234,110640.0,110620.0,0.05785025]
[1756836663482,0.18217234,110640.0,110630.0,0.43512156]
[1756836663688,0.01959234,110640.0,110630.0,0.43512156]
[1756836664289,0.11246234,110640.0,110630.0,0.43512156]
[1756836664586,0.18217234,110640.0,110630.0,0.43512156]
[1756836664987,0.11246234,110640.0,110630.0,0.43512156]
[1756836665187,0.11246234,110640.0,110630.0,0.43712156]
[1756836665385,0.18317234,110640.0,110630.0,0.43712156]
[1756836665590,0.11346234,110640.0,110630.0,0.43709816]
[1756836665788,0.11246234,110640.0,110630.0,0.43709816]
[1756836666089,0.11346234,110640.0,110630.0,1.3661709]
[1756836666290,0.18317234,110640.0,110630.0,1.3661709]
[1756836666492,0.11346234,110640.0,110630.0,1.3661709]
[1756836666690,0.09387,110640.0,110630.0,1.3661709]
[1756836667388,0.001,110640.0,110630.0,1.3661709]
[1756836670095,0.44311651,110640.0,110630.0,0.003]
[1756836670294,0.44311651,110640.0,110630.0,0.5036109]
[1756836670597,0.44311651,110640.0,110630.0,0.5016109]
[1756836674596,0.44311651,110640.0,110630.0,0.001]
[1756836674895,0.44311651,110640.0,110630.0,0.5016109]
[1756836675190,0.44311651,110640.0,110610.0,0.01983881]
[1756836675393,0.44311651,110640.0,110600.0,0.5211118]
[1756836675394,0.09389,110610.0,110600.0,0.5211118]
[1756836675599,0.16641,110610.0,110600.0,0.5211118]
[1756836676700,0.16741,110610.0,110600.0,0.5261118]
[1756836677093,0.16741,110610.0,110600.0,0.005]
[1756836677691,0.16741,110610.0,110600.0,0.5056109]
[1756836678093,0.17661158,110610.0,110600.0,0.5086109]
[1756836679197,0.01020158,110610.0,110600.0,0.7586109]
[1756836679404,0.01020158,110610.0,110600.0,1.6190509]
[1756836679901,0.001,110610.0,110600.0,1.6190509]
[1756836680205,0.001,110610.0,110600.0,1.7094598]
[1756836680395,0.19535,110650.0,110630.0,0.5006109]
[1756836680701,0.5848429,110650.0,110640.0,0.5006109]
[1756836681291,0.5940517,110650.0,110640.0,0.5006109]
[1756836681507,0.16641,110630.0,110610.0,0.02015959]
[1756836681701,0.16641,110630.0,110620.0,0.5006109]
[1756836683008,0.16741,110630.0,110620.0,0.002]
[1756836683200,0.16741,110630.0,110620.0,0.5026109]
[1756836683601,0.16741,110630.0,110620.0,0.002]
[1756836683602,0.18692677,110630.0,110620.0,0.002]
[1756836683810,0.18692677,110630.0,110620.0,0.5036109]
[1756836684200,0.18692677,110630.0,110620.0,0.003]
[1756836685096,0.18692677,110630.0,110620.0,0.5036109]
[1756836690405,0.02051677,110630.0,110620.0,0.5036109]
[1756836690805,0.06606677,110630.0,110620.0,0.5036109]
[1756836691310,0.06606677,110630.0,110620.0,0.003]
[1756836691499,0.06606677,110630.0,110620.0,0.5036109]
[1756836691903,0.02051677,110630.0,110620.0,0.5036109]
[1756836693613,0.02051677,110630.0,110620.0,0.7536109]
[1756836695007,0.18692677,110630.0,110620.0,0.253]
[1756836695212,0.18692677,110630.0,110620.0,0.7536109]
[1756836695813,0.11440677,110630.0,110620.0,0.7536109]
[1756836696118,0.06606677,110630.0,110620.0,0.7536109]
[1756836696417,0.02051677,110630.0,110620.0,0.7536109]
[1756836696809,0.001,110630.0,110620.0,0.80233727]
[1756836698411,0.001,110630.0,110620.0,1.66265727]
[1756836698815,0.001,110630.0,110620.0,1.66261727]
[1756836699410,0.0092088,110650.0,110620.0,1.78300977]
[1756836699604,0.03958661,110650.0,110640.0,0.5006109]
[1756836700912,0.02858997,110650.0,110640.0,0.5006109]
[1756836701314,0.02958997,110650.0,110640.0,1.3608509]
[1756836701813,0.03058997,110650.0,110640.0,1.3618509]
[1756836702316,0.01100336,110650.0,110640.0,0.7516109]
[1756836702514,0.19588336,110650.0,110640.0,0.7516109]
[1756836702817,0.19688336,110650.0,110640.0,1.6118109]
[1756836703014,0.10303336,110650.0,110640.0,1.6118109]
[1756836703213,0.16945336,110650.0,110640.0,1.6118109]
[1756836703510,0.10303336,110650.0,110640.0,1.6118109]
[1756836703915,0.10303336,110650.0,110640.0,0.7516109]
[1756836704218,0.16945336,110650.0,110640.0,1.6118109]
[1756836705015,0.16945336,110650.0,110640.0,0.7516109]
[1756836705213,0.16945336,110650.0,110640.0,1.6117309]
[1756836705214,0.19688336,110650.0,110640.0,1.6117309]
[1756836705409,0.44688336,110650.0,110640.0,0.5016109]
[1756836705610,0.44688336,110650.0,110640.0,1.3617309]
[1756836706216,0.44688336,110650.0,110640.0,0.5016109]
[1756836706217,0.46642537,110650.0,110640.0,0.5016109]
[1756836710123,0.21642537,110650.0,110640.0,0.5016109]
[1756836711424,0.21642537,110650.0,110640.0,0.001]
[1756836711425,0.46642537,110650.0,110640.0,0.001]
[1756836713318,0.46642537,110650.0,110640.0,0.5016109]
[1756836714032,0.46642537,110650.0,110640.0,0.001]
[1756836715913,1.27909008,110650.0,110610.0,0.52077049]
[1756836716116,0.15745,110620.0,110610.0,0.52077049]
[1756836716321,0.15745,110620.0,110610.0,0.02015959]
[1756836716526,0.15745,110620.0,110610.0,0.52077049]
[1756836717223,0.15745,110620.0,110610.0,0.52277049]
[1756836717721,0.17698122,110620.0,110610.0,0.52677049]
[1756836718025,0.17798122,110620.0,110610.0,0.52677049]
[1756836720220,0.17798122,110620.0,110610.0,0.5066109]
[1756836721432,0.02053122,110620.0,110610.0,0.7566109]
[1756836721925,0.17798122,110620.0,110610.0,0.7566109]
[1756836722631,0.11156122,110620.0,110610.0,0.7566109]
[1756836724022,0.06797122,110620.0,110610.0,0.7566109]
[1756836724222,0.02053122,110620.0,110610.0,0.7566109]
[1756836725031,0.17798122,110620.0,110610.0,0.7566109]
[1756836725233,0.02053122,110620.0,110610.0,0.7566109]
[1756836725428,0.02053122,110620.0,110610.0,0.5066109]
[1756836726128,0.02053122,110620.0,110610.0,0.7566109]
[1756836726326,0.001,110620.0,110610.0,0.7566109]
[1756836727427,0.001,110620.0,110610.0,0.75677643]
[1756836727735,0.001,110620.0,110610.0,1.61645643]
[1756836728527,0.001,110620.0,110610.0,0.75677643]
[1756836728736,0.001,110620.0,110610.0,1.11568]
[1756836728930,0.001,110620.0,110610.0,1.55093099]
[1756836729530,0.001,110620.0,110610.0,1.55095518]
[1756836729936,0.001,110620.0,110610.0,1.55134295]
[1756836731038,0.001,110620.0,110610.0,1.55130295]
[1756836731537,0.04844,110620.0,110610.0,1.55126295]
[1756836732033,0.04844,110620.0,110610.0,1.1156]
[1756836732335,0.04844,110620.0,110610.0,1.55126295]
[1756836733832,0.09451,110620.0,110610.0,1.11552]
[1756836734134,0.16469,110620.0,110610.0,1.55118295]
[1756836734535,0.41469,110620.0,110610.0,0.44166295]
[1756836734837,0.86985635,110620.0,110610.0,0.006]
[1756836735128,0.4341934,110620.0,110610.0,0.006]
[1756836736337,0.86985635,110620.0,110610.0,0.006]
[1756836736923,0.4341934,110620.0,110610.0,0.006]
[1756836737530,0.4331934,110620.0,110610.0,0.002]
[1756836737736,0.4341934,110620.0,110610.0,0.004]
[1756836738230,0.4341934,110620.0,110610.0,0.002]
[1756836738834,0.4341934,110620.0,110610.0,0.43766295]
[1756836739733,0.1841934,110620.0,110610.0,0.43766295]
[1756836740537,0.4441934,110620.0,110610.0,0.002]
[1756836740729,0.87985635,110620.0,110610.0,0.002]
[1756836741427,0.4441934,110620.0,110610.0,0.002]
[1756836742137,0.87985635,110620.0,110610.0,0.002]
[1756836744047,0.86985635,110620.0,110610.0,0.002]
[1756836744429,0.4341934,110620.0,110610.0,0.43766295]
[1756836744633,0.1841934,110620.0,110610.0,0.43766295]
[1756836745640,0.1841934,110620.0,110610.0,0.002]
[1756836745841,0.61985635,110620.0,110610.0,0.002]
[1756836746434,0.1841934,110620.0,110610.0,0.43766295]
[1756836747535,0.1941934,110620.0,110610.0,0.43766295]
[1756836748134,0.1941934,110620.0,110610.0,0.002]
[1756836748335,0.87985635,110620.0,110610.0,0.002]
[1756836748730,0.1941934,110620.0,110610.0,0.43766295]
[1756836749733,0.1941934,110620.0,110610.0,0.002]
[1756836749933,0.62985635,110620.0,110610.0,0.002]
[1756836750636,0.87985635,110620.0,110590.0,0.02050895]
[1756836750836,0.18873,110600.0,110590.0,0.02050895]
[1756836751042,0.2082334,110600.0,110590.0,0.02050895]
[1756836751943,0.2082334,110600.0,110590.0,0.002]
[1756836752736,0.28055165,110600.0,110590.0,0.002]
[1756836753141,0.28055165,110600.0,110590.0,0.005]
[1756836753341,0.7162146,110600.0,110590.0,0.003]
[1756836753543,0.7162146,110600.0,110590.0,0.002]
[1756836753743,0.28155165,110600.0,110590.0,0.005]
[1756836754544,0.7172146,110600.0,110590.0,0.005]
[1756836754743,0.28155165,110600.0,110590.0,0.005]
[1756836756945,0.28155165,110600.0,110590.0,0.44066295]
[1756836757137,0.28155165,110600.0,110590.0,0.005]
[1756836757643,1.5762146,110600.0,110590.0,0.005]
[1756836758046,1.14055165,110600.0,110590.0,0.005]
[1756836759061,1.8262146,110600.0,110590.0,0.005]
[1756836759353,0.16085,110580.0,110570.0,0.45556812]
[1756836759534,0.1803534,110580.0,110570.0,0.64556812]
[1756836759744,0.18034774,110580.0,110570.0,0.64556812]
[1756836760446,0.18034774,110580.0,110570.0,0.64956812]
[1756836760948,0.18234774,110580.0,110570.0,0.65156812]
[1756836761844,0.18234774,110580.0,110570.0,0.46156812]
[1756836762647,0.18134774,110580.0,110570.0,0.45956812]
[1756836762946,0.18234774,110580.0,110570.0,0.45556812]
[1756836765144,0.18234774,110580.0,110570.0,0.01990517]
[1756836765342,0.18234774,110580.0,110570.0,0.45556812]
[1756836766537,0.12254036,110580.0,110540.0,1.80024637]
[1756836766739,0.19117036,110580.0,110570.0,0.43566295]
[1756836766941,0.62683331,110580.0,110550.0,0.45600119]
[1756836767150,0.16142,110560.0,110550.0,0.33033824]
[1756836767341,0.09279,110560.0,110550.0,0.33033824]
[1756836767547,0.04615,110560.0,110550.0,0.33033824]
[1756836768354,0.04615,110560.0,110550.0,0.76600119]
[1756836768666,0.16142,110570.0,110550.0,1.01600119]
[1756836768951,0.1809281,110570.0,110560.0,0.43566295]
[1756836769456,0.0195081,110570.0,110560.0,0.43566295]
[1756836769646,0.1122981,110570.0,110560.0,0.43566295]
[1756836769845,0.1142981,110570.0,110560.0,0.43566295]
[1756836770050,0.1829281,110570.0,110560.0,0.43566295]
[1756836770253,0.1809281,110570.0,110560.0,0.43566295]
[1756836770548,0.1819281,110570.0,110560.0,0.43566295]
[1756836770957,0.1819281,110570.0,110550.0,0.02033824]
[1756836771249,0.1819281,110570.0,110560.0,0.43566295]
[1756836771650,0.1819281,110570.0,110550.0,0.02033824]
[1756836771851,0.1819281,110570.0,110560.0,0.43566295]
[1756836773952,0.1819281,110570.0,110550.0,0.02033824]
[1756836774152,0.1819281,110570.0,110560.0,0.43566295]
[1756836775747,0.1819281,110570.0,110550.0,0.02133824]
[1756836775949,0.1819281,110570.0,110560.0,0.43566295]
[1756836776955,0.1809281,110570.0,110550.0,0.02033824]
[1756836777154,0.1829281,110570.0,110560.0,0.43566295]
[1756836777550,0.1819281,110570.0,110560.0,0.43566295]
[1756836778459,0.1819281,110570.0,110550.0,0.02033824]
[1756836778755,0.1819281,110570.0,110560.0,0.43566295]
[1756836779058,0.1819281,110570.0,110550.0,0.45700119]
[1756836779259,0.16142,110560.0,110550.0,0.49700119]
[1756836779753,0.16142,110560.0,110550.0,0.45600119]
[1756836780952,0.18094167,110560.0,110550.0,0.45600119]
[1756836781854,0.18094167,110560.0,110550.0,0.45700119]
[1756836782352,0.18294167,110560.0,110550.0,0.45700119]
[1756836783254,0.06767167,110560.0,110550.0,0.45700119]
[1756836783657,0.11431167,110560.0,110550.0,0.45700119]
[1756836784266,0.02152167,110560.0,110550.0,0.45700119]
[1756836784759,0.11431167,110560.0,110550.0,0.45700119]
[1756836785357,0.02152167,110560.0,110550.0,0.45700119]
[1756836785561,0.06767167,110560.0,110550.0,0.45700119]
[1756836785961,0.11431167,110560.0,110550.0,0.45700119]
[1756836787463,0.11431167,110560.0,110550.0,0.45749939]
[1756836787665,0.02152167,110560.0,110550.0,0.47789422]
[1756836788366,0.02152167,110560.0,110550.0,0.4559665]
[1756836788767,0.02152167,110560.0,110550.0,0.7059665]
[1756836788966,0.002,110560.0,110550.0,0.7059665]
[1756836789270,0.002,110560.0,110550.0,1.5641665]
[1756836790261,0.002,110560.0,110550.0,0.75475678]
[1756836790462,0.002,110560.0,110550.0,1.61291678]
[1756836790872,0.002,110560.0,110550.0,1.5641265]
[1756836790873,0.02152439,110560.0,110550.0,1.5641265]
[1756836791265,0.02152439,110560.0,110550.0,1.6129223]
[1756836791660,0.002,110560.0,110550.0,1.6129223]
[1756836791862,0.00882262,110580.0,110550.0,1.8629223]
[1756836792166,0.01952791,110590.0,110570.0,0.46302923]
[1756836792373,0.01952623,110590.0,110580.0,0.41423343]
[1756836792577,0.24832825,110600.0,110580.0,0.41423343]
[1756836792869,0.53785544,110600.0,110590.0,0.41423343]
[1756836793175,0.54701047,110600.0,110590.0,0.41423343]
[1756836793468,0.54701047,110600.0,110590.0,0.43470129]
[1756836793666,0.10100047,110600.0,110590.0,0.43470129]
[1756836794268,0.08147328,110600.0,110590.0,0.43470129]
[1756836794461,0.14896,110610.0,110590.0,0.43470129]
[1756836794663,0.33846128,110610.0,110600.0,0.41423343]
[1756836794863,0.27380128,110610.0,110600.0,0.41423343]
[1756836795575,0.2543,110610.0,110600.0,0.41423343]
[1756836795772,0.26615065,110610.0,110600.0,0.41423343]
[1756836796170,0.33581065,110610.0,110600.0,0.41523343]
[1756836796664,0.33681065,110610.0,110600.0,0.41523343]
[1756836796866,0.27215065,110610.0,110600.0,0.41523343]
[1756836797279,0.18785065,110610.0,110600.0,0.82946686]
[1756836797572,0.22994065,110610.0,110600.0,0.41523343]
[1756836797774,0.24941176,110610.0,110600.0,0.41523343]
[1756836798077,0.29162176,110610.0,110600.0,0.41523343]
[1756836798870,0.42857901,110610.0,110600.0,0.001]
[1756836799077,0.42857901,110610.0,110600.0,0.41523343]
[1756836799267,0.4285634,110610.0,110600.0,0.41523343]
[1756836800276,0.4091079,110610.0,110600.0,0.41523343]
[1756836804280,0.1322379,110610.0,110600.0,0.82946686]
[1756836804880,0.0901479,110610.0,110600.0,0.82946686]
[1756836805279,0.1322379,110610.0,110600.0,1.68682686]
[1756836806172,0.0901479,110610.0,110600.0,1.68682686]
[1756836806577,0.0901479,110610.0,110600.0,1.93682686]
[1756836806779,0.0901479,110610.0,110600.0,1.07946686]
[1756836806973,0.0901479,110610.0,110600.0,1.93670686]
[1756836808377,0.2391079,110610.0,110600.0,1.52239343]
[1756836808575,0.2391079,110610.0,110600.0,0.66523343]
[1756836808786,0.2391079,110610.0,110600.0,1.52239343]
[1756836809577,0.1744479,110610.0,110600.0,1.52239343]
[1756836809769,0.1744479,110610.0,110600.0,1.93662686]
[1756836810173,0.2391079,110610.0,110600.0,1.52239343]
[1756836810474,0.2391079,110610.0,110600.0,1.93662686]
[1756836810973,0.1744479,110610.0,110600.0,1.93662686]
[1756836811969,0.0901479,110610.0,110600.0,1.93662686]
[1756836812486,0.06466,110630.0,110600.0,1.96662686]
[1756836812782,0.16838689,110630.0,110620.0,0.41423343]
[1756836812981,0.16838689,110630.0,110620.0,1.27119343]
[1756836813377,0.10372689,110630.0,110620.0,1.27119343]
[1756836813883,0.16838689,110630.0,110620.0,1.27115343]
[1756836814078,0.17038689,110630.0,110620.0,1.27115343]
[1756836814484,0.17945333,110630.0,110620.0,1.27115343]
[1756836814783,0.01306644,110630.0,110620.0,1.27115343]
[1756836815083,0.09209,110650.0,110620.0,1.55115343]
[1756836815380,0.19582932,110650.0,110640.0,0.41423343]
[1756836815781,0.19582932,110650.0,110640.0,1.27103343]
[1756836816377,0.20494271,110650.0,110640.0,1.27099343]
[1756836816779,0.27665,110650.0,110640.0,1.27099343]
[1756836817078,0.27865,110650.0,110640.0,1.27099343]
[1756836817881,0.27665,110650.0,110640.0,1.27099343]
[1756836818180,0.33109687,110650.0,110640.0,1.27199343]
[1756836818881,0.33109687,110650.0,110640.0,0.85776]
[1756836818882,0.32609687,110650.0,110640.0,0.85776]
[1756836819076,0.32609687,110650.0,110640.0,1.27199343]
[1756836819871,0.26143687,110650.0,110640.0,1.27199343]
[1756836820175,0.21299,110650.0,110640.0,1.27199343]
[1756836820372,0.27679,110650.0,110640.0,1.27199343]
[1756836821190,0.32523687,110650.0,110640.0,1.27199343]
[1756836821482,0.32523687,110650.0,110640.0,0.41523343]
[1756836821683,0.32523687,110650.0,110640.0,1.27163343]
[1756836822580,0.32523687,110650.0,110640.0,0.41523343]
[1756836822884,0.32523687,110650.0,110640.0,1.27163343]
[1756836823581,0.94102343,110650.0,110610.0,0.01982068]
[1756836823782,0.94102343,110650.0,110600.0,0.01985733]
[1756836823783,0.14783,110610.0,110600.0,0.01985733]
[1756836823974,0.16726932,110610.0,110600.0,0.44409076]
[1756836824586,0.01943932,110610.0,110600.0,0.44409076]
[1756836824786,0.001,110610.0,110600.0,0.45009076]
[1756836824990,0.02043932,110610.0,110600.0,0.86432419]
[1756836825487,0.02043932,110610.0,110600.0,1.11232419]
[1756836826590,0.02043932,110610.0,110600.0,1.11532419]
[1756836826784,0.02043932,110610.0,110600.0,0.70109076]
[1756836827186,0.02043932,110610.0,110600.0,1.11532419]
[1756836827678,0.02043932,110610.0,110600.0,1.97152419]
[1756836827879,0.02043932,110610.0,110600.0,2.29152419]
[1756836827880,0.001,110610.0,110600.0,2.29152419]
[1756836828085,0.0638,110640.0,110600.0,2.29152419]
[1756836828281,0.0638,110640.0,110630.0,0.41423343]
[1756836828282,0.16731031,110640.0,110630.0,0.41423343]
[1756836828888,0.16731031,110640.0,110620.0,0.7998]
[1756836829086,0.16731031,110640.0,110630.0,0.41423343]
[1756836829293,0.06119031,110640.0,110630.0,0.41423343]
[1756836829496,0.01948031,110640.0,110630.0,0.41423343]
[1756836830697,0.02048031,110640.0,110630.0,0.41523343]
[1756836831089,0.01948031,110640.0,110630.0,0.4341802]
[1756836831291,0.02048031,110640.0,110630.0,0.4371802]
[1756836831493,0.001,110640.0,110630.0,1.2942202]
[1756836832194,0.001,110640.0,110630.0,1.3242202]
[1756836833196,0.001,110640.0,110630.0,0.05394677]
[1756836833400,0.001,110640.0,110630.0,0.90990677]
[1756836833595,0.001,110640.0,110630.0,1.3241402]
[1756836833990,0.001,110640.0,110630.0,1.5641402]
[1756836834294,0.001,110640.0,110630.0,1.8941402]
[1756836834595,0.0638,110650.0,110640.0,0.41423343]
[1756836834791,0.19399111,110650.0,110640.0,0.41423343]
[1756836834991,0.19399111,110650.0,110640.0,1.27011343]
[1756836835398,0.19399111,110650.0,110640.0,0.85588]
[1756836835599,0.19399111,110650.0,110640.0,1.27011343]
[1756836835790,0.19499111,110650.0,110640.0,1.27211343]
[1756836836295,0.26717549,110650.0,110640.0,1.27211343]
[1756836837197,0.26717549,110650.0,110640.0,1.27207343]
[1756836837397,0.26717549,110650.0,110640.0,0.41623343]
[1756836837698,0.26717549,110650.0,110640.0,1.27199343]
[1756836837890,0.26717549,110650.0,110640.0,0.41623343]
[1756836838192,0.93140892,110650.0,110640.0,1.27195343]
[1756836838695,0.51717549,110650.0,110640.0,1.27195343]
[1756836839294,0.26717549,110650.0,110640.0,0.41623343]
[1756836839492,0.68140892,110650.0,110640.0,0.41623343]
[1756836839692,0.26717549,110650.0,110640.0,0.41623343]
[1756836840393,0.93140892,110650.0,110640.0,0.002]
[1756836842098,0.51717549,110650.0,110640.0,0.002]
[1756836842295,0.93140892,110650.0,110640.0,0.002]
[1756836843499,0.93140892,110650.0,110640.0,0.41623343]
[1756836844501,0.17670549,110650.0,110640.0,0.41623343]
[1756836844701,0.26717549,110650.0,110640.0,0.41623343]
[1756836844905,0.26717549,110650.0,110640.0,0.002]
[1756836845097,0.26717549,110650.0,110640.0,0.41623343]
[1756836846494,0.17670549,110650.0,110640.0,0.41623343]
[1756836846692,0.26717549,110650.0,110640.0,0.41623343]
[1756836847598,0.26717549,110650.0,110640.0,0.41559584]
[1756836848109,0.26717549,110650.0,110640.0,0.43745055]
[1756836850200,0.26717549,110650.0,110640.0,0.002]
[1756836850406,0.26717549,110650.0,110640.0,0.43745055]
[1756836853605,0.09267549,110650.0,110640.0,0.43745055]
[1756836853807,0.07318438,110650.0,110640.0,0.68745055]
[1756836854311,0.001,110650.0,110640.0,0.6873078]
[1756836854607,0.001,110650.0,110640.0,0.7173078]
[1756836855107,0.001,110650.0,110640.0,1.5725078]
[1756836855298,0.001,110650.0,110640.0,0.7173078]
[1756836855804,0.17612,110650.0,110640.0,1.5724678]
[1756836855999,0.001,110650.0,110640.0,1.5724678]
[1756836856399,0.001,110650.0,110640.0,1.5724278]
[1756836857505,0.08554,110650.0,110640.0,1.5723878]
[1756836857805,0.10496952,110650.0,110640.0,1.5723878]
[1756836858206,0.02042952,110650.0,110640.0,1.5723878]
[1756836859817,0.02042952,110650.0,110640.0,0.7173078]
[1756836860014,0.02042952,110650.0,110640.0,1.5722678]
[1756836860515,0.06479952,110650.0,110640.0,1.5722278]
[1756836862119,0.02042952,110650.0,110640.0,1.5722278]
[1756836863119,0.02042952,110650.0,110640.0,0.7173078]
[1756836863316,0.06479952,110650.0,110640.0,1.5721478]
[1756836863620,0.02042952,110650.0,110640.0,1.5721478]
[1756836864019,0.02042952,110650.0,110640.0,1.5721078]
[1756836867121,0.02042952,110650.0,110640.0,0.7173078]
[1756836867319,0.17046952,110650.0,110640.0,1.5719878]
[1756836867715,0.10496952,110650.0,110640.0,1.5719878]
[1756836867913,0.06479952,110650.0,110640.0,1.5719878]
[1756836869820,0.10496952,110650.0,110640.0,0.7173078]
[1756836870025,0.44554952,110650.0,110640.0,0.4673078]
[1756836870225,0.44554952,110650.0,110640.0,0.032]
[1756836870420,0.44555179,110650.0,110640.0,0.64568]
[1756836870617,0.44555179,110650.0,110640.0,1.0809878]
[1756836873929,0.44555179,110650.0,110640.0,0.4673078]
[1756836874325,0.44555179,110650.0,110640.0,1.3217878]
[1756836874720,0.44555179,110650.0,110640.0,0.88648]
[1756836874926,0.88085959,110650.0,110640.0,0.002]
[1756836875330,0.44555179,110650.0,110640.0,0.002]
[1756836875528,0.88085959,110650.0,110640.0,0.002]
[1756836876030,0.08454,110640.0,110620.0,0.53922237]
[1756836876327,0.15004,110630.0,110620.0,0.11391457]
[1756836876530,0.16947179,110630.0,110620.0,0.11391457]
[1756836877217,0.16947179,110630.0,110620.0,0.03020457]
[1756836877421,0.16947179,110630.0,110620.0,0.4503078]
[1756836877631,0.40104,110630.0,110620.0,0.015]
[1756836877930,0.85577828,110630.0,110620.0,0.005]
[1756836878131,0.42047048,110630.0,110620.0,0.007]
[1756836879327,0.42047048,110630.0,110620.0,0.005]
[1756836879524,0.42047048,110630.0,110620.0,0.007]
[1756836879725,0.42047048,110630.0,110620.0,0.4423078]
[1756836880534,0.17047048,110630.0,110620.0,0.4423078]
[1756836882034,0.08554,110630.0,110620.0,0.4423078]
[1756836882331,0.14766,110630.0,110620.0,0.4423078]
[1756836885430,0.04537,110630.0,110620.0,0.4423078]
[1756836885837,0.08493,110630.0,110620.0,0.4423078]
[1756836886430,0.14705,110630.0,110620.0,0.4423078]
[1756836887942,0.14705,110630.0,110620.0,1.2965478]
[1756836889239,0.14705,110630.0,110620.0,0.4423078]
[1756836889537,0.14705,110630.0,110620.0,1.2964678]
[1756836890640,0.08493,110630.0,110620.0,1.2964678]
[1756836891138,0.08493,110630.0,110620.0,0.4423078]
[1756836891139,0.14705,110630.0,110620.0,0.4423078]